fUST/lending_fUST_20240927
["ID","MTS","AMOUNT","RATE_DAILY","PERIOD"]
[339276296,1727433051230,-510.17944481,0.00019726,2]
[339276297,1727433051240,-502.64573123,0.00019726,2]
[339276298,1727433051249,-500.0,0.00019726,2]
[339276299,1727433051259,-500.0,0.00019773,2]
[339276300,1727433051268,-404.07975281,0.00019773,2]
[339276301,1727433051277,-500.0,0.00019773,2]
[339276302,1727433051287,-500.0,0.00019773,2]
[339276303,1727433051296,-5000.0,0.000198,2]
[339276304,1727433051306,-157346.67529681,0.000198,2]
[339276305,1727433051316,-65795.99254041,0.000198,2]
[339276306,1727433051326,-151.0,0.000198,2]
[339276307,1727433051335,-152.85971,0.000198,2]
[339276308,1727433051345,-151.0,0.000198,2]
[339276309,1727433051355,-151.0,0.000198,2]
[339276310,1727433051365,-234.353154,0.000198,2]
[339276311,1727433051374,-151.0,0.000198,2]
[339276312,1727433051384,-567.879086,0.000198,2]
[339276313,1727433051394,-567.879086,0.000198,2]
[339276314,1727433051403,-302.890858,0.000198,2]
[339276315,1727433051413,-302.890858,0.000198,2]
[339276316,1727433051423,-315.592089,0.000198,2]
[339276317,1727433051433,-315.592089,0.000198,2]
[339276318,1727433051443,-151.0,0.000198,2]
[339276319,1727433051453,-316.48167,0.000198,2]
[339276320,1727433051463,-316.48167,0.000198,2]
[339276321,1727433051474,-151.0,0.000198,2]
[339276322,1727433051483,-151.0,0.000198,2]
[339276323,1727433051493,-151.0,0.000198,2]
[339276324,1727433051503,-187.744339,0.000198,2]
[339276325,1727433051513,-187.744339,0.000198,2]
[339276326,1727433051523,-427.524984,0.000198,2]
[339276327,1727433051532,-427.524984,0.000198,2]
[339276328,1727433051544,-302.406349,0.000198,2]
[339276329,1727433051555,-302.406349,0.000198,2]
[339276330,1727433051565,-270.775197,0.000198,2]
[339276331,1727433051575,-270.775197,0.000198,2]
[339276332,1727433051586,-151.022,0.000198,2]
[339276333,1727433051596,-264.367798,0.000198,2]
[339276334,1727433051606,-264.367798,0.000198,2]
[339276335,1727433051616,-151.0,0.000198,2]
[339276336,1727433051626,-151.0,0.000198,2]
[339276337,1727433051635,-394.294684,0.000198,2]
[339276338,1727433051645,-394.294684,0.000198,2]
[339276339,1727433051655,-157.44656,0.000198,2]
[339276340,1727433051665,-157.44656,0.000198,2]
[339276341,1727433051675,-483.563113,0.000198,2]
[339276342,1727433051685,-483.563113,0.000198,2]
[339276343,1727433051694,-151.0,0.000198,2]
[339276344,1727433051704,-151.0,0.000198,2]
[339276345,1727433051713,-151.0,0.000198,2]
[339276346,1727433051723,-285.801294,0.0001989,2]
[339276347,1727433051732,-285.801294,0.0001989,2]
[339276348,1727433051742,-151.0,0.0001989,2]
[339276349,1727433051751,-277.939259,0.0001989,2]
[339276350,1727433051761,-151.0,0.0001989,2]
[339276351,1727433051770,-151.0,0.0001989,2]
[339276352,1727433051780,-151.0,0.0001989,2]
[339276353,1727433051790,-1000.0,0.000199,2]
[339276354,1727433051799,-158.015378,0.0001997,2]
[339276355,1727433051809,-158.015378,0.0001997,2]
[339276356,1727433051819,-151.0,0.0001997,2]
[339276357,1727433051828,-151.0,0.0001997,2]
[339276358,1727433051837,-151.0,0.0001997,2]
[339276359,1727433051847,-151.0,0.0001997,2]
[339276360,1727433051856,-151.0,0.0001997,2]
[339276361,1727433051866,-270.775197,0.0001997,2]
[339276362,1727433051875,-270.775197,0.0001997,2]
[339276363,1727433051885,-264.367798,0.0001997,2]
[339276364,1727433051897,-264.367798,0.0001997,2]
[339276365,1727433051906,-151.0,0.0001997,2]
[339276366,1727433051916,-273.189698,0.0001997,2]
[339276367,1727433051926,-394.294684,0.0001997,2]
[339276368,1727433051939,-394.294684,0.0001997,2]
[339276369,1727433051948,-500.0,0.00019973,2]
[339276370,1727433051959,-500.0,0.00019973,2]
[339276371,1727433051970,-500.0,0.00019973,2]
[339276372,1727433051981,-500.50451328,0.00019973,2]
[339276373,1727433051990,-500.39443641,0.00019973,2]
[339276374,1727433051999,-500.13969444,0.00019973,2]
[339276375,1727433052009,-500.0,0.00019973,2]
[339276376,1727433052019,-567.879086,0.00019973,2]
[339276377,1727433052028,-567.879086,0.00019973,2]
[339276378,1727433052038,-302.890858,0.00019973,2]
[339276379,1727433052047,-302.890858,0.00019973,2]
[339276380,1727433052056,-315.592089,0.00019973,2]
[339276381,1727433052066,-315.592089,0.00019973,2]
[339276382,1727433052075,-316.48167,0.00019973,2]
[339276383,1727433052084,-316.48167,0.00019973,2]
[339276384,1727433052095,-187.744339,0.00019973,2]
[339276385,1727433052104,-187.744339,0.00019973,2]
[339276386,1727433052113,-151.0,0.0001998,2]
[339276387,1727433052123,-285.801294,0.0001998,2]
[339276388,1727433052133,-285.801294,0.0001998,2]
[339276389,1727433052142,-151.0,0.0001998,2]
[339276390,1727433052152,-151.0,0.0001998,2]
[339276391,1727433052161,-151.0,0.0001998,2]
[339276392,1727433052170,-151.0,0.0001998,2]
[339276393,1727433052180,-151.0,0.0001998,2]
[339276394,1727433052189,-334.612855,0.0001998,2]
[339276395,1727433052199,-151.0,0.0001998,2]
[339276396,1727433052306,-151.0,0.0001998,2]
[339276397,1727433052316,-227.137022,0.0001998,2]
[339276398,1727433052326,-427.524984,0.0001998,2]
[339276399,1727433052335,-427.524984,0.0001998,2]
[339276400,1727433052345,-302.406349,0.0001998,2]
[339276401,1727433052356,-302.406349,0.0001998,2]
[339276402,1727433052366,-157.44656,0.0001998,2]
[339276403,1727433052376,-157.44656,0.0001998,2]
[339276404,1727433052385,-171.525076,0.0001998,2]
[339276405,1727433052394,-285.801294,0.0001999,2]
[339276406,1727433052404,-285.801294,0.0001999,2]
[339276407,1727433052414,-151.0,0.0001999,2]
[339276408,1727433052423,-151.0,0.0001999,2]
[339276409,1727433052433,-151.0,0.0001999,2]
[339276410,1727433052444,-12275.18448806,0.0001999,2]
[339276411,1727433052456,-204.71326294,0.00019999,2]
[339276412,1727433052465,-6775.35649093,0.00019999,2]
[339276413,1727433052476,-151.0,0.00019999,2]
[339276414,1727433052487,-85976.09351408,0.0002,2]
[339276415,1727433052497,-250.0,0.0002,2]
[339276416,1727433052507,-985.80686113,0.0002,10]
[339276417,1727433052517,-151.0,0.0002,2]
[339276418,1727433052527,-285.801294,0.0002,2]
[339276419,1727433052538,-285.801294,0.0002,2]
[339276420,1727433052548,-151.0,0.0002,2]
[339276421,1727433052559,-151.0,0.0002,2]
[339276422,1727433052568,-151.0,0.0002,2]
[339276423,1727433052578,-500.0,0.0002,2]
[339276424,1727433052587,-500.0,0.0002,2]
[339276425,1727433052597,-753.36,0.0002,2]
[339276426,1727433052607,-158.015378,0.0002,2]
[339276427,1727433052616,-158.015378,0.0002,2]
[339276428,1727433052626,-151.0,0.0002,2]
[339276429,1727433052635,-1740.82,0.0002,2]
[339276430,1727433052646,-151.0,0.0002,2]
[339276431,1727433052657,-1645.61,0.0002,2]
[339276432,1727433052666,-500.0,0.0002,2]
[339276433,1727433052676,-181.95433877,0.0002,2]
[339276434,1727433052686,-500.0,0.0002,2]
[339276435,1727433052696,-500.0,0.0002,2]
[339276436,1727433052705,-200.0,0.0002,2]
[339276437,1727433052715,-151.0,0.0002,2]
[339276438,1727433052726,-500.0,0.0002,2]
[339276439,1727433052739,-151.0,0.0002,2]
[339276440,1727433052748,-151.0,0.0002,2]
[339276441,1727433052758,-151.0,0.0002,2]
[339276442,1727433052767,-334.612855,0.0002,2]
[339276443,1727433052777,-500.0,0.0002,2]
[339276444,1727433052786,-500.0,0.0002,2]
[339276445,1727433052795,-567.879086,0.0002,2]
[339276446,1727433052805,-567.879086,0.0002,2]
[339276447,1727433052815,-559.5,0.0002,2]
[339276448,1727433052825,-500.0,0.0002,2]
[339276449,1727433052834,-302.890858,0.0002,2]
[339276450,1727433052843,-302.890858,0.0002,2]
[339276451,1727433052854,-315.592089,0.0002,2]
[339276452,1727433052863,-315.592089,0.0002,2]
[339276453,1727433052872,-316.48167,0.0002,2]
[339276454,1727433052881,-316.48167,0.0002,2]
[339276455,1727433052891,-500.0,0.0002,2]
[339276456,1727433052904,-500.0,0.0002,2]
[339276457,1727433052914,-151.0,0.0002,2]
[339276458,1727433052923,-151.0,0.0002,2]
[339276459,1727433052933,-500.0,0.0002,2]
[339276460,1727433052943,-187.744339,0.0002,2]
[339276461,1727433052952,-187.744339,0.0002,2]
[339276462,1727433052963,-427.524984,0.0002,2]
[339276463,1727433052975,-500.0,0.0002,2]
[339276464,1727433052985,-427.524984,0.0002,2]
[339276465,1727433052995,-302.406349,0.0002,2]
[339276466,1727433053004,-302.406349,0.0002,2]
[339276467,1727433053014,-270.775197,0.0002,2]
[339276468,1727433053024,-270.775191,0.0002,2]
[339276469,1727433053033,-500.0,0.0002,2]
[339276470,1727433053043,-1224.84,0.0002,2]
[339276471,1727433053051,-1590.93,0.0002,2]
[339276472,1727433053061,-264.367798,0.0002,2]
[339276473,1727433053071,-964.57,0.0002,2]
[339276474,1727433053080,-264.36779,0.0002,2]
[339276475,1727433053090,-15175.53,0.0002,2]
[339276476,1727433053100,-1127.51,0.0002,2]
[339276477,1727433053110,-2768.04,0.0002,2]
[339276478,1727433053121,-517.49,0.0002,2]
[339276479,1727433053132,-151.0,0.0002,2]
[339276480,1727433053141,-11857.07355434,0.0002,15]
[339276481,1727433053151,-394.294684,0.0002,2]
[339276482,1727433053161,-525.2,0.0002,2]
[339276483,1727433053170,-394.294684,0.0002,2]
[339276484,1727433053179,-157.44656,0.0002,2]
[339276485,1727433053188,-157.44656,0.0002,2]
[339276486,1727433053198,-483.563113,0.0002,2]
[339276487,1727433053207,-483.563113,0.0002,2]
[339276488,1727433053217,-212.022229,0.0002,2]
[339276489,1727433053227,-151.0,0.0002,2]
[339276490,1727433053237,-500.0,0.0002,2]
[339276491,1727433053247,-1136.32562703,0.00020173,2]
[339276492,1727433053257,-753.36,0.00020273,2]
[339276493,1727433053266,-1740.82,0.00020273,2]
[339276494,1727433053275,-1645.61,0.00020273,2]
[339276495,1727433053285,-500.0,0.00020273,2]
[339276496,1727433053295,-487.52746367,0.00020273,2]
[339276497,1727433053304,-500.0,0.00020273,2]
[339276498,1727433053313,-200.0,0.00020273,2]
[339276499,1727433053323,-500.0,0.00020273,2]
[339276500,1727433053331,-500.0,0.00020273,2]
[339276501,1727433053341,-500.0,0.00020273,2]
[339276502,1727433053351,-559.5,0.00020273,2]
[339276503,1727433053361,-500.0,0.00020273,2]
[339276504,1727433053370,-500.0,0.00020273,2]
[339276505,1727433053380,-500.0,0.00020273,2]
[339276506,1727433053389,-500.0,0.00020273,2]
[339276507,1727433053399,-500.0,0.00020273,2]
[339276508,1727433053408,-500.0,0.00020273,2]
[339276509,1727433053417,-1224.84,0.00020273,2]
[339276510,1727433053427,-1590.93,0.00020273,2]
[339276511,1727433053436,-964.57,0.00020273,2]
[339276512,1727433053446,-15175.53,0.00020273,2]
[339276513,1727433053455,-1127.51,0.00020273,2]
[339276514,1727433053465,-2768.04,0.00020273,2]
[339276515,1727433053475,-517.49,0.00020273,2]
[339276516,1727433053484,-525.2,0.00020273,2]
[339276517,1727433053494,-500.0,0.00020273,2]
[339276518,1727433053504,-244.6405,0.00020288,2]
[339276519,1727433053513,-541.0,0.00020301,2]
[339276520,1727433053523,-367.50169955,0.00020321,2]
[339276521,1727433053532,-1000.0,0.00020321,2]
[339276522,1727433053542,-1000.83854048,0.00020321,2]
[339276523,1727433053551,-541.0,0.00020328,2]
[339276524,1727433053561,-541.0,0.00020356,2]
[339276525,1727433053571,-146813.0,0.00020377,2]
[339276526,1727433053581,-151.0,0.00020377,2]
[339276527,1727433053590,-541.0,0.00020383,2]
[339276528,1727433053600,-1000.0,0.000204,2]
[339276529,1727433053609,-150.0,0.000204,2]
[339276530,1727433053619,-541.0,0.00020411,2]
[339276531,1727433053628,-1500.0,0.00020431,2]
[339276532,1727433053638,-541.0,0.00020438,2]
[339276533,1727433053648,-541.0,0.00020465,2]
[339276534,1727433053658,-541.0,0.00020493,2]
[339276535,1727433053667,-14809.65343382,0.00020493,2]
[339276536,1727433053676,-151.0,0.00020493,2]
[339276537,1727433053686,-151.0,0.00020493,2]
[339276538,1727433053695,-151.0,0.00020493,2]
[339276539,1727433053704,-151.0,0.00020493,2]
[339276540,1727433053714,-334.612855,0.00020493,2]
[339276541,1727433053723,-483.563113,0.00020493,2]
[339276542,1727433053732,-483.563113,0.00020493,2]
[339276543,1727433053741,-1437.52,0.00020498,3]
[339276544,1727433053750,-718.76,0.00020498,3]
[339276545,1727433053760,-359.38,0.00020498,3]
[339276546,1727433053769,-287.0,0.000205,3]
[339276547,1727433053779,-567.879086,0.000205,2]
[339276548,1727433053788,-567.87908,0.000205,2]
[339276549,1727433053799,-302.890858,0.000205,2]
[339276550,1727433053809,-302.890858,0.000205,2]
[339276551,1727433053818,-315.592089,0.000205,2]
[339276552,1727433053828,-315.592088,0.000205,2]
[339276553,1727433053837,-187.744339,0.000205,2]
[339276554,1727433053846,-187.744343,0.000205,2]
[339276555,1727433053856,-466.13882125,0.00020503,2]
[339276556,1727433053865,-151.0,0.0002052,2]
[339276557,1727433053874,-427.524984,0.0002052,2]
[339276558,1727433053883,-427.524982,0.0002052,2]
[339276559,1727433053894,-302.406349,0.0002052,2]
[339276560,1727433053905,-302.406344,0.0002052,2]
[339276561,1727433053914,-541.0,0.0002052,2]
[339276562,1727433053923,-1000.0,0.00020521,2]
[339276563,1727433053934,-1000.0,0.00020521,2]
[339276564,1727433053945,-1000.0,0.00020521,2]
[339276565,1727433053955,-1000.0,0.00020521,2]
[339276566,1727433053964,-158.015378,0.00020521,2]
[339276567,1727433053975,-158.015378,0.00020521,2]
[339276568,1727433053984,-151.0,0.00020521,2]
[339276569,1727433053994,-151.0,0.00020521,2]
[339276570,1727433054004,-316.48167,0.00020521,2]
[339276571,1727433054013,-316.481673,0.00020521,2]
[339276572,1727433054023,-151.0,0.00020547,2]
[339276573,1727433054032,-151.0,0.00020547,2]
[339276574,1727433054043,-753.36,0.00020547,2]
[339276575,1727433054052,-1740.82,0.00020547,2]
[339276576,1727433054061,-1645.61,0.00020547,2]
[339276577,1727433054070,-640.51989,0.00020547,2]
[339276578,1727433054079,-500.0,0.00020547,2]
[339276579,1727433054088,-200.0,0.00020547,2]
[339276580,1727433054099,-500.0,0.00020547,2]
[339276581,1727433054108,-500.0,0.00020547,2]
[339276582,1727433054117,-500.0,0.00020547,2]
[339276583,1727433054126,-559.5,0.00020547,2]
[339276584,1727433054136,-500.0,0.00020547,2]
[339276585,1727433054145,-482.37469278,0.00020547,2]
[339276586,1727433054155,-500.0,0.00020547,2]
[339276587,1727433054164,-500.0,0.00020547,2]
[339276588,1727433054174,-500.0,0.00020547,2]
[339276589,1727433054183,-500.0,0.00020547,2]
[339276590,1727433054192,-1224.84,0.00020547,2]
[339276591,1727433054201,-1590.93,0.00020547,2]
[339276592,1727433054211,-964.57,0.00020547,2]
[339276593,1727433054221,-14056.49401155,0.00020547,2]
[339276594,1727433054437,-1119.03598845,0.00020547,2]
[339276595,1727433054448,-1127.51,0.00020547,2]
[339276596,1727433054458,-2768.04,0.00020547,2]
[339276597,1727433054467,-517.49,0.00020547,2]
[339276598,1727433054478,-525.2,0.00020547,2]
[339276599,1727433054487,-157.44656,0.00020547,2]
[339276600,1727433054497,-157.44656,0.00020547,2]
[339276601,1727433054507,-500.0,0.00020547,2]
[339276602,1727433054517,-541.0,0.00020548,2]
[339276603,1727433054527,-541.0,0.00020575,2]
[339276604,1727433054539,-541.0,0.00020602,2]
[339276605,1727433054549,-9602.5888428,0.0002061,2]
[339276606,1727433054561,-541.0,0.0002063,2]
[339276607,1727433054572,-541.0,0.00020657,2]
[339276608,1727433054582,-541.0,0.00020685,2]
[339276609,1727433054593,-151.0,0.0002069,2]
[339276610,1727433054603,-151.0,0.000207,2]
[339276611,1727433054714,-151.0,0.000207,2]
[339276612,1727433054725,-285.801294,0.000207,2]
[339276613,1727433054735,-285.801294,0.000207,2]
[339276614,1727433054745,-151.0,0.000207,2]
[339276615,1727433054755,-182.308056,0.000207,2]
[339276616,1727433054765,-224.302456,0.000207,2]
[339276617,1727433054775,-158.015378,0.000207,2]
[339276618,1727433054784,-158.015378,0.000207,2]
[339276619,1727433054802,-202.519324,0.000207,2]
[339276620,1727433054811,-151.0,0.000207,2]
[339276621,1727433054821,-334.612855,0.000207,2]
[339276622,1727433054831,-541.0,0.00020712,2]
[339276623,1727433054840,-541.0,0.00020739,2]
[339276624,1727433054850,-541.0,0.00020767,2]
[339276625,1727433054859,-420.0,0.00020782,2]
[339276626,1727433054869,-541.0,0.00020794,2]
[339276627,1727433054878,-753.36,0.00020821,2]
[339276628,1727433054887,-1740.82,0.00020821,2]
[339276629,1727433054900,-1645.61,0.00020821,2]
[339276630,1727433054910,-500.0,0.00020821,2]
[339276631,1727433054919,-200.0,0.00020821,2]
[339276632,1727433054930,-151.0,0.00020821,2]
[339276633,1727433054942,-500.0,0.00020821,2]
[339276634,1727433054952,-151.0,0.00020821,2]
[339276635,1727433054962,-500.0,0.00020821,2]
[339276636,1727433054973,-500.0,0.00020821,2]
[339276637,1727433054983,-559.5,0.00020821,2]
[339276638,1727433054993,-500.0,0.00020821,2]
[339276639,1727433055003,-500.0,0.00020821,2]
[339276640,1727433055012,-500.0,0.00020821,2]
[339276641,1727433055021,-500.0,0.00020821,2]
[339276642,1727433055031,-500.0,0.00020821,2]
[339276643,1727433055044,-1224.84,0.00020821,2]
[339276644,1727433055054,-1590.93,0.00020821,2]
[339276645,1727433055066,-964.57,0.00020821,2]
[339276646,1727433055076,-15175.53,0.00020821,2]
[339276647,1727433055086,-1127.51,0.00020821,2]
[339276648,1727433055095,-2768.04,0.00020821,2]
[339276649,1727433055104,-517.49,0.00020821,2]
[339276650,1727433055114,-525.2,0.00020821,2]
[339276651,1727433055123,-151.0,0.00020821,2]
[339276652,1727433055133,-541.0,0.00020822,2]
[339276653,1727433055142,-541.0,0.00020849,2]
[339276654,1727433055151,-541.0,0.00020876,2]
[339276655,1727433055161,-500.0,0.00020877,3]
[339276656,1727433055170,-500.0,0.00020877,3]
[339276657,1727433055180,-500.0,0.00020877,3]
[339276658,1727433055189,-500.0,0.00020877,3]
[339276659,1727433055198,-266.0,0.00020877,3]
[339276660,1727433055208,-3264.54351685,0.00020889,2]
[339276661,1727433055218,-5045.96148272,0.000209,2]
[339276662,1727433055234,-10818.73851728,0.000209,2]
[339276663,1727433055243,-7687.63559039,0.000209,2]
[339276664,1727433055293,-3325.52240961,0.000209,2]
[339276665,1727433055302,-290.533584,0.000209,5]
[339276666,1727433055312,-151.0,0.000209,2]
[339276667,1727433055321,-151.0,0.000209,2]
[339276668,1727433055330,-157.44656,0.000209,2]
[339276669,1727433055339,-157.446568,0.000209,2]
[339276670,1727433055348,-483.563113,0.000209,2]
[339276671,1727433055357,-483.563113,0.000209,2]
[339276672,1727433055366,-541.0,0.00020904,2]
[339276673,1727433055375,-557.0,0.00020931,2]
[339276674,1727433055385,-420.0,0.00020974,2]
[339276675,1727433055394,-1000.0,0.00021,21]
[339276676,1727433055403,-2270.53136612,0.00021,4]
[339276677,1727433055412,-4996.49053934,0.00021,5]
[339276678,1727433055421,-56239.94619887,0.00021,5]
[339276679,1727433055431,-250.0,0.00021,2]
[339276680,1727433055441,-500.0,0.00021,30]
[339276681,1727433055450,-500.0,0.00021,30]
[339276682,1727433055459,-500.0,0.00021,30]
[339276683,1727433055469,-879.63813938,0.00021,30]
[339276684,1727433055478,-500.0,0.00021,30]
[339276685,1727433055488,-500.0,0.00021,30]
[339276686,1727433055497,-500.0,0.00021,30]
[339276687,1727433055506,-500.0,0.00021,30]
[339276688,1727433055515,-500.0,0.00021,30]
[339276689,1727433055524,-500.0,0.00021,30]
[339276690,1727433055534,-500.0,0.00021,30]
[339276691,1727433055553,-500.0,0.00021,30]
[339276692,1727433055562,-500.0,0.00021,30]
[339276693,1727433055572,-500.0,0.00021,30]
[339276694,1727433055582,-500.0,0.00021,30]
[339276695,1727433055591,-500.0,0.00021,30]
[339276696,1727433055600,-500.0,0.00021,30]
[339276697,1727433055610,-500.0,0.00021,30]
[339276698,1727433055619,-500.0,0.00021,30]
[339276699,1727433055628,-510.77584455,0.00021,30]
[339276700,1727433055638,-500.0,0.00021,30]
[339276701,1727433055647,-500.0,0.00021,30]
[339276702,1727433055656,-500.0,0.00021,30]
[339276703,1727433055665,-734.20927279,0.00021,30]
[339276704,1727433055674,-500.0,0.00021,30]
[339276705,1727433055683,-500.0,0.00021,30]
[339276706,1727433055691,-500.0,0.00021,30]
[339276707,1727433055700,-500.0,0.00021,30]
[339276708,1727433055709,-500.0,0.00021,30]
[339276709,1727433055719,-882.01871696,0.00021,30]
[339276710,1727433055728,-501.66777924,0.00021,30]
[339276711,1727433055736,-500.0,0.00021,30]
[339276712,1727433055745,-500.0,0.00021,30]
[339276713,1727433055754,-500.0,0.00021,30]
[339276714,1727433055763,-500.0,0.00021,30]
[339276715,1727433055772,-500.0,0.00021,30]
[339276716,1727433055781,-787.37510182,0.00021,30]
[339276717,1727433055790,-800.0,0.00021,30]
[339276718,1727433055800,-800.0,0.00021,30]
[339276719,1727433055809,-800.0,0.00021,30]
[339276720,1727433055818,-800.0,0.00021,30]
[339276721,1727433055827,-800.0,0.00021,30]
[339276722,1727433055836,-800.0,0.00021,30]
[339276723,1727433055845,-800.0,0.00021,30]
[339276724,1727433055855,-800.0,0.00021,30]
[339276725,1727433055864,-800.0,0.00021,30]
[339276726,1727433055873,-800.0,0.00021,30]
[339276727,1727433055883,-500.0,0.00021,30]
[339276728,1727433055892,-800.0,0.00021,30]
[339276729,1727433055906,-800.0,0.00021,30]
[339276730,1727433055915,-800.0,0.00021,30]
[339276731,1727433055924,-1431.02725656,0.00021,30]
[339276732,1727433055933,-500.0,0.00021,30]
[339276733,1727433055943,-500.0,0.00021,30]
[339276734,1727433055955,-500.0,0.00021,30]
[339276735,1727433055965,-500.0,0.00021,30]
[339276736,1727433055976,-500.0,0.00021,30]
[339276737,1727433055986,-500.0,0.00021,30]
[339276738,1727433055995,-500.0,0.00021,30]
[339276739,1727433056004,-500.0,0.00021,30]
[339276740,1727433056013,-500.0,0.00021,30]
[339276741,1727433056023,-500.0,0.00021,30]
[339276742,1727433056033,-500.0,0.00021,30]
[339276743,1727433056052,-500.0,0.00021,30]
[339276744,1727433056061,-705.87430767,0.00021,30]
[339276745,1727433056070,-154.047577,0.00021,2]
[339276746,1727433056079,-151.0,0.00021,2]
[339276747,1727433056089,-285.801294,0.00021,2]
[339276748,1727433056098,-285.801294,0.00021,2]
[339276749,1727433056107,-151.0,0.00021,2]
[339276750,1727433056116,-158.015378,0.00021,2]
[339276751,1727433056125,-158.015378,0.00021,2]
[339276752,1727433056134,-151.0,0.00021,2]
[339276753,1727433056143,-151.0,0.00021,2]
[339276754,1727433056153,-151.0,0.00021,2]
[339276755,1727433056163,-151.0,0.00021,2]
[339276756,1727433056172,-334.612855,0.00021,2]
[339276757,1727433056181,-3000.0,0.00021,2]
[339276758,1727433056190,-3000.0,0.00021,3]
[339276759,1727433056199,-483.563113,0.00021,2]
[339276760,1727433056208,-483.56311,0.00021,2]
[339276761,1727433056218,-151.0,0.00021,2]
[339276762,1727433056228,-500.0,0.00021,30]
[339276763,1727433056239,-500.0,0.00021,30]
[339276764,1727433056250,-500.0,0.00021,30]
[339276765,1727433056260,-500.0,0.00021,30]
[339276766,1727433056269,-500.0,0.00021,30]
[339276767,1727433056279,-500.0,0.00021,30]
[339276768,1727433056289,-276.8824371,0.00021,30]
[339276769,1727433056298,-500.0,0.00021,30]
[339276770,1727433056307,-500.0,0.00021,30]
[339276771,1727433056316,-500.0,0.00021,30]
[339276772,1727433056325,-500.0,0.00021,30]
[339276773,1727433056334,-500.0,0.00021,30]
[339276774,1727433056343,-500.0,0.00021,30]
[339276775,1727433056353,-500.0,0.00021,30]
[339276776,1727433056362,-500.0,0.00021,30]
[339276777,1727433056371,-500.0,0.00021,30]
[339276778,1727433056380,-500.0,0.00021,30]
[339276779,1727433056390,-499.3,0.00021,30]
[339276780,1727433056399,-500.0,0.00021,30]
[339276781,1727433056409,-546.55036028,0.00021,30]
[339276782,1727433056418,-500.0,0.00021,30]
[339276783,1727433056427,-500.0,0.00021,30]
[339276784,1727433056438,-504.39221637,0.00021,30]
[339276785,1727433056448,-500.0,0.00021,30]
[339276786,1727433056458,-500.0,0.00021,30]
[339276787,1727433056468,-500.0,0.00021,30]
[339276788,1727433056477,-500.0,0.00021,30]
[339276789,1727433056486,-500.0,0.00021,30]
[339276790,1727433056496,-500.0,0.00021,30]
[339276791,1727433056505,-500.0,0.00021,30]
[339276792,1727433056514,-500.0,0.00021,30]
[339276793,1727433056524,-500.0,0.00021,30]
[339276794,1727433056533,-500.0,0.00021,30]
[339276795,1727433056544,-500.0,0.00021,30]